fUSD/lending_fUSD_20240122
["ID","MTS","AMOUNT","RATE_DAILY","PERIOD"]
[312460425,1705900243985,-151.0,0.000244,7]
[312460426,1705900243994,-151.0,0.000244,7]
[312460427,1705900244004,-164.994229,0.000244,7]
[312460428,1705900244013,-164.994229,0.000244,7]
[312460429,1705900244026,-151.0,0.000244,7]
[312460430,1705900244035,-151.0,0.000244,7]
[312460431,1705900244044,-759.57,0.00024421,2]
[312460432,1705900244064,-352.87,0.00024474,2]
[312460433,1705900244076,-250.0,0.00024658,2]
[312460434,1705900244086,-235.219525,0.00024718,7]
[312460435,1705900244096,-279.871547,0.00024718,7]
[312460436,1705900244105,-151.0,0.00024718,7]
[312460437,1705900244115,-943.769105,0.00024718,7]
[312460438,1705900244124,-151.0,0.00024718,7]
[312460439,1705900244135,-161.56,0.00024793,2]
[312460440,1705900244144,-1114.39,0.00024962,2]
[312460441,1705900244154,-1164.54,0.00024983,2]
[312460442,1705900244164,-201.0,0.00025,10]
[312460443,1705900244173,-350.0,0.00025,3]
[312460444,1705900244183,-300.0,0.00025,2]
[312460445,1705900244193,-706.546313,0.00025,2]
[312460446,1705900244202,-150.0,0.00025,2]
[312460447,1705900244212,-439.6,0.00025003,2]
[312460448,1705900244221,-159.0399871,0.00025058,2]
[312460449,1705900244231,-164.12749708,0.00025064,2]
[312460450,1705900244241,-500.0,0.00025441,2]
[312460451,1705900244250,-151.0,0.00025441,7]
[312460452,1705900244260,-161.56,0.00025484,2]
[312460453,1705900244273,-5283.677,0.00025657,2]
[312460454,1705900244282,-2275.0,0.00025657,2]
[312460455,1705900244292,-19722.0,0.00025657,2]
[312460456,1705900244302,-5234.194,0.00025657,2]
[312460457,1705900244311,-2908.0,0.00025657,2]
[312460458,1705900244321,-179.55,0.000257,2]
[312460459,1705900244330,-164.12749708,0.00025785,2]
[312460460,1705900244340,-151.0,0.00025979,7]
[312460461,1705900244350,-151.0,0.00025979,7]
[312460462,1705900244359,-151.0,0.00025979,7]
[312460463,1705900244369,-338.735053,0.00025979,7]
[312460464,1705900244379,-338.735053,0.00025979,7]
[312460465,1705900244388,-151.0,0.00025979,7]
[312460466,1705900244398,-151.0,0.00025979,7]
[312460467,1705900244407,-151.0,0.00025979,7]
[312460468,1705900244416,-151.0,0.00025979,7]
[312460469,1705900244426,-164.994229,0.00025979,7]
[312460470,1705900244435,-164.994229,0.00025979,7]
[312460471,1705900244445,-151.0,0.00025979,7]
[312460472,1705900244454,-151.0,0.00025979,7]
[312460473,1705900244467,-151.0,0.00025979,7]
[312460474,1705900244477,-1359.0,0.00025979,2]
[312460475,1705900244487,-564.242,0.00025979,2]
[312460476,1705900244496,-311.647,0.00025979,2]
[312460477,1705900244507,-1856.0,0.00025979,2]
[312460478,1705900244517,-450.0,0.00025979,2]
[312460479,1705900244530,-836.0,0.00025979,2]
[312460480,1705900244539,-947.0,0.00025979,2]
[312460481,1705900244549,-1250.0,0.00025979,2]
[312460482,1705900244558,-214.347,0.00025979,2]
[312460483,1705900244567,-1233.0,0.00025979,2]
[312460484,1705900244577,-272.086,0.00025979,2]
[312460485,1705900244588,-303.275,0.00025979,2]
[312460486,1705900244598,-1935.0,0.00025979,2]
[312460487,1705900244607,-497.93,0.00025979,2]
[312460488,1705900244616,-152.605,0.00025979,2]
[312460489,1705900244625,-857.0,0.00025979,2]
[312460490,1705900244634,-153.971,0.00025979,2]
[312460491,1705900244644,-508.0,0.00025979,2]
[312460492,1705900244653,-319.0,0.00025979,2]
[312460493,1705900244663,-300.0,0.00026,2]
[312460494,1705900244672,-706.546313,0.00026,2]
[312460495,1705900244681,-150.0,0.00026,2]
[312460496,1705900244690,-1114.39,0.00026047,2]
[312460497,1705900244700,-161.61,0.00026065,2]
[312460498,1705900244709,-439.6,0.0002609,2]
[312460499,1705900244719,-161.46,0.00026092,2]
[312460500,1705900244728,-161.56,0.00026175,2]
[312460501,1705900244738,-159.0399871,0.00026195,2]
[312460502,1705900244747,-164.12749708,0.00026507,2]
[312460503,1705900244757,-210.0,0.00026521,10]
[312460504,1705900244767,-506.44,0.00026566,2]
[312460505,1705900244778,-1176.51,0.00026575,2]
[312460506,1705900244787,-1164.54,0.00026627,2]
[312460507,1705900244796,-427.27,0.00026873,2]
[312460508,1705900244806,-426.86,0.00026873,2]
[312460509,1705900244815,-154.98,0.00026873,2]
[312460510,1705900244824,-309.0,0.00026873,2]
[312460511,1705900244834,-150.0,0.00026873,2]
[312460512,1705900244843,-150.0,0.00026873,2]
[312460513,1705900244852,-1300.0,0.000269,9]
[312460514,1705900244862,-428.9940242,0.00027,2]
[312460515,1705900244871,-400.0,0.00027,3]
[312460516,1705900244881,-151.0,0.00027,7]
[312460517,1705900244890,-300.0,0.00027,2]
[312460518,1705900244900,-706.546313,0.00027,2]
[312460519,1705900244911,-150.0,0.00027,2]
[312460520,1705900244920,-759.57,0.00027134,2]
[312460521,1705900244930,-686.2606522,0.00027184,2]
[312460522,1705900244940,-795.4766704,0.00027184,2]
[312460523,1705900244949,-352.87,0.00027193,2]
[312460524,1705900244959,-164.12749708,0.00027228,2]
[312460525,1705900244968,-200000.0,0.00027284,2]
[312460526,1705900244978,-338.735053,0.00027284,7]
[312460527,1705900244987,-338.735053,0.00027284,7]
[312460528,1705900244996,-151.0,0.00027284,7]
[312460529,1705900245006,-943.769105,0.00027284,7]
[312460530,1705900245015,-151.0,0.00027284,7]
[312460531,1705900245025,-151.0,0.00027284,7]
[312460532,1705900245034,-151.0,0.00027284,7]
[312460533,1705900245044,-151.0,0.00027284,7]
[312460534,1705900245053,-151.0,0.00027284,7]
[312460535,1705900245063,-164.994229,0.00027284,7]
[312460536,1705900245072,-164.994229,0.00027284,7]
[312460537,1705900245081,-151.0,0.00027284,7]
[312460538,1705900245091,-151.0,0.00027284,7]
[312460539,1705900245100,-151.0,0.00027284,7]
[312460540,1705900245109,-159.0399871,0.00027332,2]
[312460541,1705900245119,-1000.0,0.00027397,2]
[312460542,1705900245128,-1000.0,0.00027397,2]
[312460543,1705900245137,-1000.0,0.00027397,2]
[312460544,1705900245147,-1000.0,0.00027397,2]
[312460545,1705900245157,-1000.0,0.00027397,2]
[312460546,1705900245166,-1000.0,0.00027397,2]
[312460547,1705900245175,-1000.0,0.00027397,2]
[312460548,1705900245185,-1000.0,0.00027397,2]
[312460549,1705900245194,-1000.0,0.00027397,2]
[312460550,1705900245203,-1000.0,0.00027397,2]
[312460551,1705900245213,-1000.0,0.00027397,2]
[312460552,1705900245222,-1000.0,0.00027397,2]
[312460553,1705900245232,-1000.0,0.00027397,2]
[312460554,1705900245241,-1000.0,0.00027397,2]
[312460555,1705900245250,-1000.0,0.00027397,2]
[312460556,1705900245260,-1000.0,0.00027397,2]
[312460557,1705900245269,-1000.0,0.00027397,2]
[312460558,1705900245280,-1000.0,0.00027397,2]
[312460559,1705900245289,-1000.0,0.00027397,2]
[312460560,1705900245299,-1000.0,0.00027397,2]
[312460561,1705900245308,-1000.0,0.00027397,2]
[312460562,1705900245318,-1000.0,0.00027397,2]
[312460563,1705900245328,-1000.0,0.00027397,2]
[312460564,1705900245337,-1000.0,0.00027397,2]
[312460565,1705900245346,-1000.0,0.00027397,2]
[312460566,1705900245355,-1000.0,0.00027397,2]
[312460567,1705900245364,-1000.0,0.00027397,2]
[312460568,1705900245373,-1000.0,0.00027397,2]
[312460569,1705900245382,-1000.0,0.00027397,2]
[312460570,1705900245391,-850.0,0.00027397,2]
[312460571,1705900245401,-151.0,0.00027397,7]
[312460572,1705900245410,-151.0,0.00027397,7]
[312460573,1705900245419,-151.0,0.00027397,7]
[312460574,1705900245429,-150.0,0.00027397,2]
[312460575,1705900245438,-419.23,0.00027695,2]
[312460576,1705900245447,-418.68,0.00027695,2]
[312460577,1705900245456,-403.87,0.00027695,2]
[312460578,1705900245468,-151.0,0.00027749,7]
[312460579,1705900245478,-151.0,0.00027749,7]
[312460580,1705900245487,-151.0,0.00027749,7]
[312460581,1705900245497,-151.0,0.00027749,7]
[312460582,1705900245506,-151.0,0.00027749,7]
[312460583,1705900245518,-164.12749708,0.0002795,2]
[312460584,1705900245530,-409.1490532,0.00028,2]
[312460585,1705900245539,-300.0,0.00028,2]
[312460586,1705900245548,-706.546313,0.00028,2]
[312460587,1705900245558,-150.0,0.00028,2]
[312460588,1705900245567,-500.0,0.00028067,2]
[312460589,1705900245577,-463.413094,0.0002817,2]
[312460590,1705900245586,-1164.54,0.0002827,2]
[312460592,1705900245596,-500.0,0.00028354,2]
[312460593,1705900245606,-159.0399871,0.00028468,2]
[312460594,1705900245616,-2275.0,0.00028657,2]
[312460595,1705900245625,-2721.445,0.00028657,2]
[312460596,1705900245634,-164.12749708,0.00028671,2]
[312460597,1705900245644,-506.44,0.0002883,2]
[312460598,1705900245655,-338.735053,0.00028979,7]
[312460599,1705900245664,-338.735053,0.00028979,7]
[312460600,1705900245674,-995.636,0.00028979,2]
[312460601,1705900245684,-1856.0,0.00028979,2]
[312460602,1705900245694,-326.993,0.00028979,2]
[312460603,1705900245703,-547.218,0.00028979,2]
[312460605,1705900245712,-947.0,0.00028979,2]
[312460607,1705900245722,-1250.0,0.00028979,2]
[312460610,1705900245731,-1233.0,0.00028979,2]
[312460612,1705900245740,-816.835,0.00028979,2]
[312460613,1705900245750,-398.46716508,0.00029,2]
[312460614,1705900245760,-450.0,0.00029,3]
[312460615,1705900245769,-300.0,0.00029,2]
[312460617,1705900245780,-706.546313,0.00029,2]
[312460619,1705900245789,-150.0,0.00029,2]
[312460622,1705900245798,-164.12749708,0.00029392,2]
[312460625,1705900245807,-159.0399871,0.00029605,2]
[312460628,1705900245817,-176.14639569,0.000298,2]
[312460632,1705900245826,-733.58508975,0.000298,2]
[312460634,1705900245836,-151.0,0.000298,7]
[312460637,1705900245846,-151.0,0.000298,7]
[312460640,1705900245856,-151.0,0.000298,7]
[312460643,1705900245865,-151.0,0.000298,7]
[312460646,1705900245874,-164.994229,0.000298,7]
[312460649,1705900245884,-164.994229,0.000298,7]
[312460652,1705900245894,-151.0,0.000298,7]
[312460655,1705900245903,-188.933747,0.000298,7]
[312460658,1705900245913,-759.57,0.00029848,2]
[312460661,1705900245923,-352.87,0.00029913,2]
[312460664,1705900245932,-1164.54,0.00029914,2]
[312460667,1705900245942,-151.0,0.00029971,7]
[312460670,1705900245951,-943.769105,0.00029971,7]
[312460673,1705900245961,-151.0,0.00029971,7]
[312460676,1705900245970,-960.41896,0.0003,2]
[312460678,1705900245979,-155.0,0.0003,2]
[312460680,1705900245988,-715.89288,0.0003,4]
[312460682,1705900245998,-155.0,0.0003,4]
[312460684,1705900246007,-468.0,0.0003,2]
[312460686,1705900246017,-1000.0,0.0003,5]
[312460688,1705900246028,-622.69961765,0.0003,2]
[312460691,1705900246037,-1000.0,0.0003,2]
[312460693,1705900246047,-192.63032767,0.0003,2]
[312460695,1705900246056,-817.71022069,0.0003,4]
[312460697,1705900246066,-1181.29145428,0.0003,4]
[312460699,1705900246075,-956.64070173,0.0003,2]
[312460701,1705900246085,-765.61042609,0.0003,4]
[312460703,1705900246094,-2359.05768121,0.0003,2]
[312460705,1705900246104,-157.55597116,0.0003,60]
[312460707,1705900246113,-1114.92121836,0.0003,2]
[312460709,1705900246123,-300.0,0.0003,2]
[312460711,1705900246132,-231.8945,0.0003,2]
[312460713,1705900246141,-231.8945,0.0003,2]
[312460715,1705900246151,-250.0,0.0003,2]
[312460717,1705900246161,-151.0,0.0003,7]
[312460719,1705900246170,-164.12749708,0.00030114,2]
[312460721,1705900246179,-275.34,0.00030373,2]
[312460723,1705900246189,-182.0,0.00030581,2]
[312460725,1705900246198,-182.0,0.00030581,2]
[312460727,1705900246208,-11389.8,0.0003062,2]
[312460729,1705900246217,-1436.53,0.0003062,2]
[312460731,1705900246226,-500.0,0.00030692,2]
[312460733,1705900246236,-159.0399871,0.00030742,2]
[312460735,1705900246245,-164.12749708,0.00030835,2]
[312460737,1705900246255,-1000.0,0.00031,5]
[312460739,1705900246264,-3949.95,0.00031,14]
[312460741,1705900246275,-383.259045,0.00031,3]
[312460743,1705900246285,-250.0,0.00031,2]
[312460745,1705900246294,-154.57675853,0.00031,2]
[312460747,1705900246303,-506.44,0.00031094,2]
[312460749,1705900246312,-231.8945,0.0003127,2]
[312460751,1705900246323,-250.0,0.00031274,2]
[312460753,1705900246332,-152.17204998,0.0003131,2]
[312460755,1705900246342,-151.0,0.00031426,7]
[312460758,1705900246351,-276.07110171,0.00031426,7]
[312460760,1705900246361,-151.0,0.00031426,7]
[312460762,1705900246370,-250.0,0.00031548,2]
[312460764,1705900246380,-164.12749708,0.00031556,2]
[312460766,1705900246389,-151.0,0.00031614,7]
[312460768,1705900246399,-836.64,0.00031671,2]
[312460770,1705900246409,-519.39021724,0.000318,2]
[312460772,1705900246418,-1024.93389222,0.000318,3]
[312460774,1705900246428,-250.0,0.00031822,2]
[312460776,1705900246437,-159.0399871,0.00031878,2]
[312460778,1705900246447,-1418.604,0.00031979,2]
[312460780,1705900246456,-946.0,0.00031979,2]
[312460782,1705900246468,-197.711,0.00031979,2]
[312460784,1705900246477,-899.99999909,0.00032,33]
[312460786,1705900246487,-1000.0,0.00032,7]
[312460788,1705900246496,-95088.14271324,0.00032,2]
[312460790,1705900246505,-6240.30837226,0.00032,4]
[312460792,1705900246521,-151.0,0.00032,7]
[312460794,1705900246532,-151.0,0.00032,7]
[312460796,1705900246542,-151.0,0.00032,7]
[312460798,1705900246552,-151.0,0.00032,7]
[312460800,1705900246562,-338.735053,0.00032,7]
[312460802,1705900246571,-338.735053,0.00032,7]
[312460804,1705900246581,-338.735053,0.00032,7]
[312460806,1705900246590,-338.735053,0.00032,7]
[312460808,1705900246601,-151.0,0.00032,7]
[312460810,1705900246611,-943.769105,0.00032,7]
[312460812,1705900246621,-151.0,0.00032,7]
[312460813,1705900246630,-151.0,0.00032,7]
[312460814,1705900246640,-151.0,0.00032,7]
[312460815,1705900246649,-151.0,0.00032,7]
[312460817,1705900246658,-151.0,0.00032,7]
[312460819,1705900246667,-164.994229,0.00032,7]
[312460821,1705900246676,-164.994229,0.00032,7]
[312460823,1705900246686,-151.0,0.00032,7]
[312460825,1705900246695,-151.0,0.00032,7]
[312460827,1705900246704,-250.0,0.00032096,2]
[312460829,1705900246713,-210.0,0.00032101,18]
[312460831,1705900246723,-846.79415379,0.00032171,4]
[312460833,1705900246732,-164.12749708,0.00032278,2]
[312460835,1705900246742,-465.24189115,0.0003237,2]
[312460837,1705900246753,-759.57,0.00032561,2]
[312460839,1705900246763,-150.0,0.00032603,2]
[312460841,1705900246773,-150.0,0.00032603,2]
[312460843,1705900246784,-294.57,0.00032603,2]
[312460845,1705900246794,-151.94,0.00032603,2]
[312460848,1705900246805,-150.0,0.00032603,2]
[312460850,1705900246815,-422.48,0.00032603,2]
[312460852,1705900246825,-292.09,0.00032603,2]
[312460854,1705900246835,-150.0,0.00032603,2]
[312460856,1705900246845,-418.78,0.00032603,2]
[312460858,1705900246856,-150.0,0.00032603,2]
[312460860,1705900246865,-408.9,0.00032603,2]
[312460862,1705900246875,-150.0,0.00032603,2]
[312460864,1705900246885,-150.0,0.00032603,2]
[312460866,1705900246895,-292.09,0.00032603,2]
[312460867,1705900246905,-150.0,0.00032603,2]
[312460868,1705900246914,-294.57,0.00032603,2]
[312460869,1705900246924,-418.78,0.00032603,2]
[312460870,1705900246933,-836.94,0.00032603,2]
[312460871,1705900246943,-408.9,0.00032603,2]
[312460872,1705900246952,-150.0,0.00032603,2]
[312460873,1705900246962,-150.0,0.00032603,2]
[312460874,1705900246972,-150.0,0.00032603,2]
[312460875,1705900246982,-606.49,0.00032603,2]
[312460876,1705900246991,-588.73,0.00032603,2]
[312460877,1705900247000,-150.0,0.00032603,2]
[312460878,1705900247010,-408.9,0.00032603,2]
[312460879,1705900247019,-151.34,0.00032603,2]
[312460880,1705900247029,-418.78,0.00032603,2]
[312460881,1705900247038,-292.09,0.00032603,2]
[312460882,1705900247048,-150.0,0.00032603,2]
[312460883,1705900247060,-294.57,0.00032603,2]
[312460884,1705900247070,-418.78,0.00032603,2]
[312460885,1705900247079,-292.09,0.00032603,2]
[312460886,1705900247088,-597.23,0.00032603,2]
[312460887,1705900247098,-415.65,0.00032603,2]
[312460888,1705900247107,-292.09,0.00032603,2]
[312460889,1705900247117,-292.09,0.00032603,2]
[312460890,1705900247126,-166.26,0.00032603,2]
[312460891,1705900247135,-352.87,0.00032632,2]
[312460892,1705900247144,-397.11,0.00032877,15]
[312460893,1705900247154,-200.43839479,0.00032877,2]
[312460894,1705900247163,-1000.0,0.00032941,7]
[312460895,1705900247173,-164.12749708,0.00032999,2]
[312460896,1705900247183,-25675.74618165,0.00033,8]
[312460897,1705900247193,-1000.0,0.00033,7]
[312460898,1705900247203,-159.0399871,0.00033015,2]
[312460899,1705900247213,-1000.0,0.00033115,2]
[312460900,1705900247223,-151.0,0.00033115,7]
[312460901,1705900247233,-151.0,0.00033115,7]
[312460902,1705900247242,-151.0,0.00033115,7]
[312460903,1705900247252,-338.735053,0.00033115,7]
[312460904,1705900247261,-338.735053,0.00033115,7]
[312460906,1705900247271,-150.0,0.00033115,7]
[312460907,1705900247282,-150.0,0.00033115,7]
[312460908,1705900247291,-150.0,0.00033115,7]
[312460909,1705900247300,-152.82291959,0.00033115,7]
[312460910,1705900247311,-150.0,0.00033115,7]
[312460911,1705900247321,-150.0,0.00033115,7]
[312460912,1705900247330,-150.0,0.00033115,7]
[312460913,1705900247339,-150.0,0.00033215,7]
[312460914,1705900247349,-151.0,0.00033215,7]
[312460915,1705900247358,-150.0,0.00033314,7]
[312460916,1705900247368,-500.0,0.00033317,2]
[312460917,1705900247377,-175.3455,0.00033325,2]
[312460918,1705900247386,-150.0,0.00033345,7]
[312460919,1705900247394,-506.44,0.00033357,2]
[312460920,1705900247404,-150.0,0.00033413,7]
[312460921,1705900247414,-150.0,0.00033422,7]
[312460922,1705900247423,-338.735053,0.00033424,7]
[312460923,1705900247432,-338.73506,0.00033424,7]
[312460924,1705900247441,-150.0,0.00033513,7]
[312460925,1705900247451,-151.0122,0.00033548,4]
[312460926,1705900247461,-151.0,0.00033575,7]
[312460927,1705900247471,-163.610833,0.00033575,7]
[312460928,1705900247480,-151.0,0.00033575,7]
[312460929,1705900247489,-943.769105,0.00033575,7]
[312460930,1705900247500,-151.0,0.00033575,7]
[312460931,1705900247513,-150.0,0.00033575,7]
[312460932,1705900247522,-151.0,0.00033575,7]
[312460933,1705900247533,-150.0,0.00033612,7]
[312460934,1705900247542,-151.0,0.00033648,7]
[312460935,1705900247551,-151.0122,0.00033648,4]
[312460936,1705900247560,-408.9,0.00033699,2]
[312460937,1705900247570,-418.78,0.00033699,2]
[312460938,1705900247580,-418.78,0.00033699,2]
[312460939,1705900247589,-408.9,0.00033699,2]
[312460940,1705900247599,-418.78,0.00033699,2]
[312460941,1705900247608,-408.9,0.00033699,2]
[312460942,1705900247618,-408.9,0.00033699,2]
[312460943,1705900247627,-418.78,0.00033699,2]
[312460944,1705900247637,-150.0,0.00033712,7]
[312460945,1705900247647,-164.12749708,0.00033721,2]
[312460946,1705900247657,-151.0,0.00033728,7]
[312460947,1705900247666,-151.0,0.00033728,7]
[312460948,1705900247676,-151.0,0.00033728,7]
[312460949,1705900247685,-164.994229,0.00033728,7]
[312460950,1705900247695,-164.994229,0.00033728,7]
[312460951,1705900247705,-150.0,0.00033728,7]
[312460952,1705900247715,-151.0122,0.00033748,4]
[312460953,1705900247724,-231.8945,0.0003377,2]
[312460954,1705900247734,-150.0,0.00033805,7]
[312460955,1705900247744,-150.0,0.00033811,7]
[312460956,1705900247754,-151.0122,0.00033848,4]
[312460957,1705900247763,-150.0,0.00033911,7]
[312460958,1705900247773,-151.0122,0.00033948,4]
[312460959,1705900247783,-500.0,0.00034,2]
[312460960,1705900247983,-1000.0,0.00034,4]
[312460961,1705900248022,-2283.46985,0.00034,30]
[312460962,1705900248034,-1000.0,0.00034,15]
[312460963,1705900248044,-155.33053499,0.00034,2]
[312460964,1705900248053,-150.0,0.0003401,7]
[312460965,1705900248063,-150.0,0.00034035,7]
[312460966,1705900248072,-150.0,0.00034035,7]
[312460967,1705900248082,-151.0122,0.00034048,4]
[312460968,1705900248091,-150.0,0.0003411,7]
[312460969,1705900248101,-201.0122,0.00034148,4]
[312460970,1705900248111,-157.29825035,0.000342,4]
[312460971,1705900248121,-150.0,0.00034209,7]
[312460972,1705900248130,-201.0122,0.00034248,4]
[312460973,1705900248139,-150.0,0.00034265,7]
[312460974,1705900248149,-150.0,0.00034308,7]
[312460975,1705900248159,-150.0,0.00034342,7]
[312460976,1705900248169,-150.0,0.00034342,7]
[312460977,1705900248178,-150.0,0.00034342,7]
[312460978,1705900248188,-201.0122,0.00034348,4]
[312460979,1705900248198,-150.0,0.00034408,7]
[312460980,1705900248207,-164.12749708,0.00034442,2]
[312460981,1705900248217,-201.0122,0.00034448,4]
[312460982,1705900248227,-401.55,0.00034493,2]
[312460983,1705900248237,-150.0,0.00034495,7]
[312460984,1705900248246,-13597.03107475,0.000345,2]
[312460985,1705900248256,-150.0,0.00034507,7]
[312460986,1705900248266,-418.78,0.00034521,2]
[312460987,1705900248276,-201.0122,0.00034548,4]
[312460988,1705900248286,-150.0,0.00034607,7]
[312460989,1705900248296,-686.26065219,0.00034638,2]
[312460990,1705900248305,-795.47667039,0.00034638,2]
[312460991,1705900248314,-201.0122,0.00034648,4]
[312460992,1705900248324,-150.0,0.00034648,7]
[312460993,1705900248333,-150.0,0.00034706,7]
[312460994,1705900248343,-151.0,0.00034709,7]
[312460995,1705900248353,-10153.76994361,0.00034709,2]
[312460996,1705900248362,-150.0,0.00034725,7]
[312460997,1705900248372,-201.0122,0.00034748,4]
[312460998,1705900248382,-150.0,0.00034806,7]
[312460999,1705900248393,-185.175777,0.00034847,7]
[312461000,1705900248403,-151.0,0.00034847,7]
[312461002,1705900248414,-164.994229,0.00034847,7]
[312461003,1705900248425,-164.994229,0.00034847,7]
[312461004,1705900248436,-151.0,0.00034848,7]
[312461005,1705900248447,-943.769105,0.00034848,7]
[312461006,1705900248458,-943.769105,0.00034848,7]
[312461007,1705900248470,-186.274509,0.00034848,7]
[312461008,1705900248480,-201.0122,0.00034848,4]
[312461009,1705900248494,-150.0,0.00034905,7]
[312461010,1705900248504,-201.0122,0.00034948,4]
[312461011,1705900248514,-150.0,0.00034955,7]
[312461012,1705900248526,-150.0,0.00034955,7]
[312461013,1705900248540,-150.0,0.00034955,7]
[312461014,1705900248550,-155.65585875,0.00034998,4]
[312461015,1705900248560,-151.0,0.00034999,7]
[312461016,1705900248571,-337.05672954,0.00034999,4]
[312461017,1705900248582,-2370.74607333,0.00034999,4]
[312461018,1705900248592,-151.0,0.00034999,7]
[312461019,1705900248602,-292842.35269705,0.00035,7]
[312461020,1705900248612,-151.0,0.00035,7]
[312461021,1705900248622,-15024.57457391,0.00035,2]
[312461022,1705900248633,-260.18949172,0.00035,30]
[312461023,1705900248651,-2196.59277229,0.00035,30]
[312461024,1705900248662,-1026.84641,0.00035,30]
[312461025,1705900248673,-511.60475505,0.00035,10]
[312461026,1705900248683,-763.19547271,0.00035,2]
[312461027,1705900248695,-1736.80452729,0.00035,2]
[312461028,1705900248706,-2171.56283343,0.00035,4]
[312461029,1705900248717,-151.0,0.00035,7]
[312461030,1705900248727,-238.00702067,0.00035,2]
[312461031,1705900248738,-913.571704,0.00035,2]
[312461032,1705900248747,-150.0,0.00035005,7]
[312461033,1705900248758,-201.0122,0.00035048,4]
[312461034,1705900248769,-150.0,0.00035104,7]
[312461035,1705900248782,-463.41309399,0.00035131,2]
[312461036,1705900248792,-201.0122,0.00035148,4]
[312461037,1705900248803,-164.12749708,0.00035163,2]
[312461038,1705900248813,-150.0,0.00035185,7]
[312461039,1705900248823,-150.0,0.00035203,7]
[312461040,1705900248833,-201.0122,0.00035248,4]
[312461041,1705900248844,-150.0,0.00035261,7]
[312461042,1705900248853,-150.0,0.00035303,7]
[312461043,1705900248863,-201.0122,0.00035348,4]
[312461044,1705900248873,-2708.81694827,0.000354,2]
[312461045,1705900248894,-1298.9168025,0.000354,2]
[312461046,1705900248903,-150.0,0.00035402,7]
[312461047,1705900248913,-150.0,0.00035415,7]
[312461048,1705900248923,-150.0,0.0003547,3]
[312461049,1705900248933,-70000.0,0.000355,4]
[312461050,1705900248942,-150.0,0.00035502,7]
[312461051,1705900248952,-201.0122,0.00035548,4]
[312461052,1705900248961,-150.0,0.00035568,7]
[312461053,1705900248970,-150.0,0.00035568,7]
[312461054,1705900248980,-150.0,0.00035568,7]
[312461055,1705900248990,-150.0,0.00035601,7]
[312461056,1705900248999,-291.5449,0.00035616,7]
[312461057,1705900249009,-506.44,0.00035621,2]
[312461058,1705900249019,-150.0,0.00035645,7]
[312461059,1705900249032,-201.0122,0.00035648,4]
[312461060,1705900249041,-1003.73518423,0.000357,2]
[312461061,1705900249051,-5000.0,0.000357,2]
[312461062,1705900249060,-694.11,0.000357,7]
[312461063,1705900249069,-150.0,0.00035701,7]
[312461064,1705900249079,-153.94,0.000358,3]
[312461065,1705900249088,-241.02,0.000358,3]
[312461066,1705900249098,-241.02,0.000358,3]
[312461067,1705900249107,-241.02,0.000358,3]